[Event "Titled Tuesday Blitz April 25 Early 2023"]
[White "Lund, Gunnar"]
[Black "Gunina, Valentina"]
[WhiteFideId "1520814"]
[BlackFideId "4167570"]
[WhiteElo "2233"]
[BlackElo "2352"]
[Result "1/2-1/2"]
[Round "05"]
[TimeControl "180+2"]
[Date "2023.04.25"]
[WhiteClock "0:00:12"]
[BlackClock "0:00:21"]

1. d4 {[%clk 0:02:50]}  d5 {[%clk 0:02:59]} 2. Bf4 {[%clk 0:02:49]}  c5 {[%clk 0:02:58]} 3. e3 {[%clk 0:02:48]}  Nc6 {[%clk 0:02:58]} 4. c3 {[%clk 0:02:48]}  Bf5 {[%clk 0:02:55]} 5. Qb3 {[%clk 0:02:47]}  Qd7 {[%clk 0:02:51]} 6. Nd2 {[%clk 0:02:46]}  e6 {[%clk 0:02:51]} 7. Ngf3 {[%clk 0:02:44]}  h6 {[%clk 0:02:08]} 8. Bb5 {[%clk 0:02:40]}  Bd6 {[%clk 0:02:03]} 9. Ne5 {[%clk 0:02:38]}  Qc7 {[%clk 0:01:56]} 10. Qa4 {[%clk 0:02:38]}  Ne7 {[%clk 0:01:56]} 11. Nxc6 {[%clk 0:02:33]}  bxc6 {[%clk 0:01:55]} 12. Bxd6 {[%clk 0:02:32]}  Qxd6 {[%clk 0:01:56]} 13. Be2 {[%clk 0:02:31]}  cxd4 {[%clk 0:01:52]} 14. cxd4 {[%clk 0:02:27]}  O-O {[%clk 0:01:52]} 15. O-O {[%clk 0:02:27]}  Rfb8 {[%clk 0:01:42]} 16. b3 {[%clk 0:02:25]}  c5 {[%clk 0:01:32]} 17. Qa3 {[%clk 0:02:25]}  Rb4 {[%clk 0:01:31]} 18. dxc5 {[%clk 0:02:22]}  Qxc5 {[%clk 0:01:30]} 19. Rac1 {[%clk 0:02:20]}  Qd6 {[%clk 0:01:29]} 20. Nf3 {[%clk 0:02:14]}  a5 {[%clk 0:01:20]} 21. Nd4 {[%clk 0:02:12]}  Bg6 {[%clk 0:01:16]} 22. Nc2 {[%clk 0:02:03]}  Bxc2 {[%clk 0:01:06]} 23. Rxc2 {[%clk 0:02:02]}  a4 {[%clk 0:01:04]} 24. bxa4 {[%clk 0:02:01]}  Raxa4 {[%clk 0:01:03]} 25. Qc3 {[%clk 0:01:54]}  g6 {[%clk 0:00:53]} 26. Rfc1 {[%clk 0:01:47]}  d4 {[%clk 0:00:52]} 27. exd4 {[%clk 0:01:44]}  Rxd4 {[%clk 0:00:52]} 28. g3 {[%clk 0:01:32]}  h5 {[%clk 0:00:52]} 29. Qc7 {[%clk 0:01:18]}  Qxc7 {[%clk 0:00:51]} 30. Rxc7 {[%clk 0:01:17]}  Nd5 {[%clk 0:00:51]} 31. R7c2 {[%clk 0:01:08]}  Nb4 {[%clk 0:00:45]} 32. Rc4 {[%clk 0:00:47]}  Nxa2 {[%clk 0:00:44]} 33. Rxa4 {[%clk 0:00:41]}  Rxa4 {[%clk 0:00:43]} 34. Ra1 {[%clk 0:00:39]}  Nc3 {[%clk 0:00:44]} 35. Rxa4 {[%clk 0:00:33]}  Nxa4 {[%clk 0:00:44]} 36. Kg2 {[%clk 0:00:34]}  Nc5 {[%clk 0:00:44]} 37. Bd1 {[%clk 0:00:34]}  Kg7 {[%clk 0:00:44]} 38. Bc2 {[%clk 0:00:34]}  Kf6 {[%clk 0:00:45]} 39. Kf3 {[%clk 0:00:35]}  Ke5 {[%clk 0:00:45]} 40. Ke3 {[%clk 0:00:35]}  Nd7 {[%clk 0:00:44]} 41. f4+ {[%clk 0:00:33]}  Kd6 {[%clk 0:00:42]} 42. Kd4 {[%clk 0:00:30]}  Nf6 {[%clk 0:00:42]} 43. Bd1 {[%clk 0:00:30]}  Nd5 {[%clk 0:00:38]} 44. Bf3 {[%clk 0:00:29]}  Ne7 {[%clk 0:00:38]} 45. g4 {[%clk 0:00:26]}  hxg4 {[%clk 0:00:38]} 46. Bxg4 {[%clk 0:00:27]}  Nf5+ {[%clk 0:00:38]} 47. Ke4 {[%clk 0:00:27]}  Ke7 {[%clk 0:00:33]} 48. Bd1 {[%clk 0:00:21]}  Nd6+ {[%clk 0:00:31]} 49. Kf3 {[%clk 0:00:20]}  Kf6 {[%clk 0:00:31]} 50. Bc2 {[%clk 0:00:20]}  Nf5 {[%clk 0:00:27]} 51. Bd3 {[%clk 0:00:18]}  Kg7 {[%clk 0:00:23]} 52. Kg4 {[%clk 0:00:17]}  Kh6 {[%clk 0:00:23]} 53. Be4 {[%clk 0:00:15]}  Ne3+ {[%clk 0:00:23]} 54. Kf3 {[%clk 0:00:15]}  Nd5 {[%clk 0:00:23]} 55. Bd3 {[%clk 0:00:11]}  Kh5 {[%clk 0:00:22]} 56. Kg3 {[%clk 0:00:11]}  g5 {[%clk 0:00:18]} 57. Be2+ {[%clk 0:00:09]}  Kh6 {[%clk 0:00:18]} 58. fxg5+ {[%clk 0:00:09]}  Kxg5 {[%clk 0:00:18]} 59. h4+ {[%clk 0:00:10]}  Kh6 {[%clk 0:00:18]} 60. Bd1 {[%clk 0:00:07]}  Ne7 {[%clk 0:00:18]} 61. Be2 {[%clk 0:00:07]}  Nf5+ {[%clk 0:00:19]} 62. Kg4 {[%clk 0:00:08]}  Kg6 {[%clk 0:00:18]} 63. Bd3 {[%clk 0:00:07]}  Kf6 {[%clk 0:00:18]} 64. Bxf5 {[%clk 0:00:08]}  exf5+ {[%clk 0:00:19]} 65. Kf4 {[%clk 0:00:08]}  Kg6 {[%clk 0:00:19]} 66. h5+ {[%clk 0:00:09]}  Kf6 {[%clk 0:00:19]} 67. h6 {[%clk 0:00:08]}  Kg6 {[%clk 0:00:19]} 68. h7 {[%clk 0:00:09]}  Kxh7 {[%clk 0:00:20]} 69. Kxf5 {[%clk 0:00:10]}  Kg8 {[%clk 0:00:20]} 70. Kf6 {[%clk 0:00:10]}  Kf8 {[%clk 0:00:20]} 71. Kf5 {[%clk 0:00:10]}  Ke8 {[%clk 0:00:20]} 72. Kf6 {[%clk 0:00:11]}  Kf8 {[%clk 0:00:20]} 73. Kf5 {[%clk 0:00:11]}  Ke7 {[%clk 0:00:21]} 74. Ke5 {[%clk 0:00:12]}  Ke8 {[%clk 0:00:20]} 75. Kf6 {[%clk 0:00:12]}  Kf8 {[%clk 0:00:21]} 1/2-1/2


[Site "https://www.chess.com"]

[Event "Titled Tuesday Blitz April 25 Early 2023"]
[White "Lehtosaari, Mauri"]
[Black "Liyanage, Ranindu Dilshan"]
[WhiteFideId "501999"]
[BlackFideId "9915834"]
[WhiteElo "2537"]
[BlackElo "2199"]
[Result "0-1"]
[Round "05"]
[TimeControl "180+2"]
[Date "2023.04.25"]
[WhiteClock "0:00:01"]
[BlackClock "0:00:32"]

1. d4 {[%clk 0:03:00]}  d5 {[%clk 0:02:58]} 2. Nf3 {[%clk 0:03:00]}  e6 {[%clk 0:02:59]} 3. Bg5 {[%clk 0:02:47]}  f6 {[%clk 0:02:57]} 4. Bh4 {[%clk 0:02:39]}  g5 {[%clk 0:02:56]} 5. Bg3 {[%clk 0:02:39]}  h5 {[%clk 0:02:57]} 6. h3 {[%clk 0:02:36]}  c5 {[%clk 0:02:56]} 7. c3 {[%clk 0:02:36]}  Nc6 {[%clk 0:02:55]} 8. e3 {[%clk 0:02:36]}  Nh6 {[%clk 0:02:53]} 9. Bd3 {[%clk 0:02:34]}  Kf7 {[%clk 0:02:50]} 10. Qc2 {[%clk 0:02:31]}  Nf5 {[%clk 0:02:45]} 11. Bxf5 {[%clk 0:02:22]}  exf5 {[%clk 0:02:46]} 12. dxc5 {[%clk 0:02:23]}  Bxc5 {[%clk 0:02:45]} 13. Nbd2 {[%clk 0:02:17]}  Kg7 {[%clk 0:02:19]} 14. Nb3 {[%clk 0:02:16]}  Bb6 {[%clk 0:02:14]} 15. O-O-O {[%clk 0:02:15]}  Be6 {[%clk 0:02:08]} 16. Nbd4 {[%clk 0:02:11]}  Qc8 {[%clk 0:02:07]} 17. Nxe6+ {[%clk 0:02:00]}  Qxe6 {[%clk 0:02:08]} 18. Kb1 {[%clk 0:02:00]}  Rhd8 {[%clk 0:02:05]} 19. h4 {[%clk 0:01:56]}  g4 {[%clk 0:02:03]} 20. Nd4 {[%clk 0:01:50]}  Bxd4 {[%clk 0:01:58]} 21. exd4 {[%clk 0:01:51]}  Re8 {[%clk 0:01:55]} 22. f3 {[%clk 0:01:46]}  Rac8 {[%clk 0:01:45]} 23. Rhe1 {[%clk 0:01:37]}  Qd7 {[%clk 0:01:44]} 24. Qd3 {[%clk 0:01:25]}  Na5 {[%clk 0:01:37]} 25. fxg4 {[%clk 0:01:13]}  fxg4 {[%clk 0:01:34]} 26. Bf4 {[%clk 0:00:42]}  Nc4 {[%clk 0:01:32]} 27. Qc2 {[%clk 0:00:36]}  Qb5 {[%clk 0:01:29]} 28. Ka1 {[%clk 0:00:35]}  Rxe1 {[%clk 0:01:25]} 29. Rxe1 {[%clk 0:00:36]}  Re8 {[%clk 0:01:26]} 30. Rxe8 {[%clk 0:00:30]}  Qxe8 {[%clk 0:01:27]} 31. Qf2 {[%clk 0:00:28]}  Qe4 {[%clk 0:01:24]} 32. Bc1 {[%clk 0:00:27]}  Kf7 {[%clk 0:01:07]} 33. a3 {[%clk 0:00:26]}  Qd3 {[%clk 0:01:01]} 34. Qf4 {[%clk 0:00:22]}  Qc2 {[%clk 0:00:44]} 35. Qc7+ {[%clk 0:00:19]}  Kg6 {[%clk 0:00:42]} 36. Qf4 {[%clk 0:00:20]}  Na5 {[%clk 0:00:33]} 37. Qh6+ {[%clk 0:00:16]}  Kf7 {[%clk 0:00:34]} 38. Qxh5+ {[%clk 0:00:16]}  Ke7 {[%clk 0:00:34]} 39. Bf4 {[%clk 0:00:10]}  Nc4 {[%clk 0:00:34]} 40. Bd6+ {[%clk 0:00:01]}  Kxd6 {[%clk 0:00:32]} 0-1


[Site "https://www.chess.com"]

[Event "Titled Tuesday Blitz April 25 Early 2023"]
[White "Averjanov, Alexey"]
[Black "MaryanKyrychenko"]
[WhiteFideId "14109867"]
[WhiteElo "2701"]
[BlackElo "2534"]
[Result "0-1"]
[Round "05"]
[TimeControl "180+2"]
[Date "2023.04.25"]
[WhiteClock "0:01:54"]
[BlackClock "0:01:03"]

1. d4 {[%clk 0:03:00]}  Nf6 {[%clk 0:02:59]} 2. c4 {[%clk 0:03:00]}  e6 {[%clk 0:02:59]} 3. Nf3 {[%clk 0:03:00]}  Bb4+ {[%clk 0:02:59]} 4. Nbd2 {[%clk 0:03:00]}  O-O {[%clk 0:02:59]} 5. g3 {[%clk 0:03:00]}  c5 {[%clk 0:02:57]} 6. dxc5 {[%clk 0:02:59]}  Na6 {[%clk 0:02:49]} 7. a3 {[%clk 0:02:58]}  Bxd2+ {[%clk 0:02:48]} 8. Bxd2 {[%clk 0:02:56]}  Nxc5 {[%clk 0:02:48]} 9. Bg2 {[%clk 0:02:54]}  d5 {[%clk 0:02:34]} 10. cxd5 {[%clk 0:02:52]}  exd5 {[%clk 0:02:31]} 11. O-O {[%clk 0:02:47]}  Re8 {[%clk 0:02:28]} 12. Bc3 {[%clk 0:02:45]}  Nce4 {[%clk 0:02:09]} 13. Rc1 {[%clk 0:02:44]}  Nxc3 {[%clk 0:02:01]} 14. Rxc3 {[%clk 0:02:45]}  Bf5 {[%clk 0:01:56]} 15. Nd4 {[%clk 0:02:44]}  Bg6 {[%clk 0:01:55]} 16. e3 {[%clk 0:02:43]}  Qb6 {[%clk 0:01:54]} 17. Qe2 {[%clk 0:02:27]}  Qxd4 {[%clk 0:01:50]} 18. Rd1 {[%clk 0:02:24]}  Qe5 {[%clk 0:01:46]} 19. Qb5 {[%clk 0:02:23]}  Ne4 {[%clk 0:01:23]} 20. Rcc1 {[%clk 0:02:14]}  Nxf2 {[%clk 0:01:20]} 21. Kxf2 {[%clk 0:02:15]}  Qxe3+ {[%clk 0:01:18]} 22. Kf1 {[%clk 0:02:14]}  Re6 {[%clk 0:01:14]} 23. Bxd5 {[%clk 0:01:59]}  Rf6+ {[%clk 0:01:12]} 24. Kg2 {[%clk 0:01:59]}  Rf2+ {[%clk 0:01:09]} 25. Kh3 {[%clk 0:01:56]}  Bf5+ {[%clk 0:01:04]} 26. Kh4 {[%clk 0:01:54]}  Rxh2# {[%clk 0:01:03]} 0-1


[Site "https://www.chess.com"]

[Event "Titled Tuesday Blitz April 25 Early 2023"]
[White "Hua, Lefong"]
[Black "Santos Flores, Alberto"]
[WhiteFideId "2602253"]
[BlackFideId "3601234"]
[WhiteElo "2650"]
[BlackElo "2235"]
[Result "1/2-1/2"]
[Round "05"]
[TimeControl "180+2"]
[Date "2023.04.25"]
[WhiteClock "0:00:22"]
[BlackClock "0:00:12"]

1. d4 {[%clk 0:03:00]}  d5 {[%clk 0:01:41]} 2. c4 {[%clk 0:03:01]}  c6 {[%clk 0:01:42]} 3. Nf3 {[%clk 0:03:00]}  Nf6 {[%clk 0:01:42]} 4. Nc3 {[%clk 0:03:01]}  dxc4 {[%clk 0:01:42]} 5. a4 {[%clk 0:03:00]}  Bf5 {[%clk 0:01:42]} 6. Ne5 {[%clk 0:03:00]}  e6 {[%clk 0:01:42]} 7. f3 {[%clk 0:02:59]}  Bb4 {[%clk 0:01:43]} 8. e4 {[%clk 0:02:57]}  Bxe4 {[%clk 0:01:43]} 9. fxe4 {[%clk 0:02:56]}  Nxe4 {[%clk 0:01:44]} 10. Bd2 {[%clk 0:02:53]}  Qxd4 {[%clk 0:01:44]} 11. Nxe4 {[%clk 0:02:52]}  Qxe4+ {[%clk 0:01:45]} 12. Qe2 {[%clk 0:02:52]}  Bxd2+ {[%clk 0:01:45]} 13. Kxd2 {[%clk 0:02:53]}  Qd5+ {[%clk 0:01:46]} 14. Kc2 {[%clk 0:02:52]}  Na6 {[%clk 0:01:47]} 15. Rd1 {[%clk 0:02:37]}  Nb4+ {[%clk 0:01:36]} 16. Kb1 {[%clk 0:02:29]}  Qa5 {[%clk 0:01:36]} 17. Nxc4 {[%clk 0:02:17]}  Qxa4 {[%clk 0:01:35]} 18. Na3 {[%clk 0:02:17]}  O-O {[%clk 0:01:31]} 19. Qd2 {[%clk 0:02:09]}  b5 {[%clk 0:01:20]} 20. Be2 {[%clk 0:02:04]}  Qb3 {[%clk 0:01:20]} 21. Qc3 {[%clk 0:01:55]}  Qa2+ {[%clk 0:01:13]} 22. Kc1 {[%clk 0:01:55]}  Nd5 {[%clk 0:01:14]} 23. Qd4 {[%clk 0:01:44]}  Rfd8 {[%clk 0:01:04]} 24. Nc2 {[%clk 0:01:32]}  c5 {[%clk 0:00:58]} 25. Qe5 {[%clk 0:01:28]}  c4 {[%clk 0:00:54]} 26. Bf3 {[%clk 0:01:07]}  c3 {[%clk 0:00:35]} 27. bxc3 {[%clk 0:01:07]}  Rac8 {[%clk 0:00:32]} 28. Bxd5 {[%clk 0:01:03]}  exd5 {[%clk 0:00:31]} 29. Rhe1 {[%clk 0:00:56]}  h6 {[%clk 0:00:31]} 30. Qd4 {[%clk 0:00:52]}  Rc4 {[%clk 0:00:29]} 31. Qe5 {[%clk 0:00:47]}  b4 {[%clk 0:00:21]} 32. Rxd5 {[%clk 0:00:41]}  Rdc8 {[%clk 0:00:18]} 33. Ra5 {[%clk 0:00:14]}  Qb3 {[%clk 0:00:16]} 34. Re3 {[%clk 0:00:07]}  bxc3 {[%clk 0:00:15]} 35. Qb5 {[%clk 0:00:05]}  Qxb5 {[%clk 0:00:13]} 36. Rxb5 {[%clk 0:00:05]}  Rg4 {[%clk 0:00:13]} 37. g3 {[%clk 0:00:05]}  g6 {[%clk 0:00:11]} 38. Rb3 {[%clk 0:00:05]}  h5 {[%clk 0:00:11]} 39. Rbxc3 {[%clk 0:00:05]}  Rxc3 {[%clk 0:00:12]} 40. Rxc3 {[%clk 0:00:06]}  h4 {[%clk 0:00:13]} 41. Ne1 {[%clk 0:00:06]}  hxg3 {[%clk 0:00:12]} 42. hxg3 {[%clk 0:00:07]}  g5 {[%clk 0:00:12]} 43. Ra3 {[%clk 0:00:07]}  f5 {[%clk 0:00:11]} 44. Kc2 {[%clk 0:00:07]}  a5 {[%clk 0:00:10]} 45. Kd2 {[%clk 0:00:07]}  a4 {[%clk 0:00:10]} 46. Ke2 {[%clk 0:00:07]}  f4 {[%clk 0:00:10]} 47. gxf4 {[%clk 0:00:06]}  Rxf4 {[%clk 0:00:10]} 48. Nd3 {[%clk 0:00:05]}  Rc4 {[%clk 0:00:10]} 49. Ke3 {[%clk 0:00:04]}  Kg7 {[%clk 0:00:09]} 50. Nb2 {[%clk 0:00:04]}  Rb4 {[%clk 0:00:08]} 51. Nxa4 {[%clk 0:00:04]}  Kg6 {[%clk 0:00:08]} 52. Nc5 {[%clk 0:00:04]}  Rh4 {[%clk 0:00:07]} 53. Kf2 {[%clk 0:00:04]}  Rc4 {[%clk 0:00:07]} 54. Nd3 {[%clk 0:00:04]}  Rd4 {[%clk 0:00:06]} 55. Ne1 {[%clk 0:00:04]}  Rf4+ {[%clk 0:00:06]} 56. Kg3 {[%clk 0:00:05]}  Rb4 {[%clk 0:00:07]} 57. Nf3 {[%clk 0:00:05]}  Rb5 {[%clk 0:00:06]} 58. Ra6+ {[%clk 0:00:05]}  Kh5 {[%clk 0:00:05]} 59. Ra3 {[%clk 0:00:05]}  Rc5 {[%clk 0:00:05]} 60. Rd3 {[%clk 0:00:05]}  Rb5 {[%clk 0:00:05]} 61. Nh2 {[%clk 0:00:05]}  Ra5 {[%clk 0:00:05]} 62. Nf1 {[%clk 0:00:05]}  Rb5 {[%clk 0:00:05]} 63. Ne3 {[%clk 0:00:06]}  Ra5 {[%clk 0:00:05]} 64. Ng4 {[%clk 0:00:06]}  Rb5 {[%clk 0:00:05]} 65. Nf6+ {[%clk 0:00:07]}  Kg6 {[%clk 0:00:05]} 66. Ne4 {[%clk 0:00:07]}  Ra5 {[%clk 0:00:05]} 67. Rd6+ {[%clk 0:00:07]}  Kh5 {[%clk 0:00:06]} 68. Nf2 {[%clk 0:00:07]}  Ra3+ {[%clk 0:00:06]} 69. Kg2 {[%clk 0:00:08]}  Ra2 {[%clk 0:00:06]} 70. Rd4 {[%clk 0:00:08]}  Kg6 {[%clk 0:00:06]} 71. Re4 {[%clk 0:00:08]}  Kh5 {[%clk 0:00:06]} 72. Rb4 {[%clk 0:00:09]}  Kg6 {[%clk 0:00:06]} 73. Rb8 {[%clk 0:00:09]}  Kh5 {[%clk 0:00:07]} 74. Rh8+ {[%clk 0:00:10]}  Kg6 {[%clk 0:00:07]} 75. Rg8+ {[%clk 0:00:11]}  Kh5 {[%clk 0:00:08]} 76. Kf3 {[%clk 0:00:11]}  Ra3+ {[%clk 0:00:08]} 77. Ke2 {[%clk 0:00:12]}  Ra2+ {[%clk 0:00:09]} 78. Kf1 {[%clk 0:00:13]}  Ra3 {[%clk 0:00:09]} 79. Kg2 {[%clk 0:00:13]}  Ra2 {[%clk 0:00:09]} 80. Rg7 {[%clk 0:00:13]}  Kh6 {[%clk 0:00:08]} 81. Rd7 {[%clk 0:00:14]}  Kh5 {[%clk 0:00:09]} 82. Rd3 {[%clk 0:00:14]}  Rb2 {[%clk 0:00:09]} 83. Kf3 {[%clk 0:00:15]}  Ra2 {[%clk 0:00:09]} 84. Ne4 {[%clk 0:00:15]}  Rb2 {[%clk 0:00:10]} 85. Rd5 {[%clk 0:00:15]}  Rb3+ {[%clk 0:00:10]} 86. Kg2 {[%clk 0:00:16]}  Rb2+ {[%clk 0:00:10]} 87. Kg1 {[%clk 0:00:16]}  Rb1+ {[%clk 0:00:11]} 88. Kf2 {[%clk 0:00:17]}  Rb2+ {[%clk 0:00:11]} 89. Kf1 {[%clk 0:00:17]}  Rb1+ {[%clk 0:00:12]} 90. Kf2 {[%clk 0:00:18]}  Rb2+ {[%clk 0:00:12]} 91. Kf3 {[%clk 0:00:19]}  Rb3+ {[%clk 0:00:13]} 92. Ke2 {[%clk 0:00:19]}  Rb2+ {[%clk 0:00:13]} 93. Ke3 {[%clk 0:00:20]}  Rb3+ {[%clk 0:00:13]} 94. Kd2 {[%clk 0:00:20]}  Rb2+ {[%clk 0:00:13]} 95. Kc3 {[%clk 0:00:21]}  Rg2 {[%clk 0:00:14]} 96. Kd3 {[%clk 0:00:21]}  Kh4 {[%clk 0:00:13]} 97. Ke3 {[%clk 0:00:21]}  Rg1 {[%clk 0:00:13]} 98. Rd8 {[%clk 0:00:21]}  Kh5 {[%clk 0:00:12]} 99. Kf2 {[%clk 0:00:21]}  Ra1 {[%clk 0:00:11]} 100. Rh8+ {[%clk 0:00:21]}  Kg6 {[%clk 0:00:12]} 101. Rg8+ {[%clk 0:00:22]} 1/2-1/2


[Site "https://www.chess.com"]

[Event "Titled Tuesday Blitz April 25 Early 2023"]
[White "Borgaonkar Akshay"]
[Black "Gurevich, Dmitry"]
[WhiteFideId "25639110"]
[BlackFideId "2000407"]
[WhiteElo "2063"]
[BlackElo "2506"]
[Result "1-0"]
[Round "05"]
[TimeControl "180+2"]
[Date "2023.04.25"]
[WhiteClock "0:00:34"]
[BlackClock "0:00:09"]

1. d4 {[%clk 0:02:52]}  Nf6 {[%clk 0:02:59]} 2. Nc3 {[%clk 0:02:50]}  d5 {[%clk 0:02:58]} 3. Bf4 {[%clk 0:02:50]}  a6 {[%clk 0:02:57]} 4. e3 {[%clk 0:02:49]}  e6 {[%clk 0:02:57]} 5. Nf3 {[%clk 0:02:49]}  c5 {[%clk 0:02:57]} 6. Ne5 {[%clk 0:02:49]}  Nc6 {[%clk 0:02:56]} 7. Be2 {[%clk 0:02:49]}  Be7 {[%clk 0:02:51]} 8. h4 {[%clk 0:02:43]}  cxd4 {[%clk 0:02:47]} 9. exd4 {[%clk 0:02:43]}  Qb6 {[%clk 0:02:46]} 10. Nxc6 {[%clk 0:02:37]}  bxc6 {[%clk 0:02:34]} 11. Na4 {[%clk 0:02:36]}  Qa5+ {[%clk 0:02:29]} 12. c3 {[%clk 0:02:36]}  Nd7 {[%clk 0:02:17]} 13. b4 {[%clk 0:02:29]}  Qd8 {[%clk 0:02:15]} 14. Nc5 {[%clk 0:02:29]}  Nxc5 {[%clk 0:02:13]} 15. bxc5 {[%clk 0:02:28]}  Bxh4 {[%clk 0:02:09]} 16. Rb1 {[%clk 0:02:14]}  Bg5 {[%clk 0:02:06]} 17. Bg3 {[%clk 0:02:12]}  O-O {[%clk 0:01:58]} 18. Rb6 {[%clk 0:01:59]}  f5 {[%clk 0:01:49]} 19. Bd6 {[%clk 0:01:53]}  Be7 {[%clk 0:01:46]} 20. Rxc6 {[%clk 0:01:53]}  Bxd6 {[%clk 0:01:39]} 21. Rxd6 {[%clk 0:01:54]}  Qa5 {[%clk 0:01:37]} 22. Qd2 {[%clk 0:01:50]}  Rb8 {[%clk 0:01:35]} 23. O-O {[%clk 0:01:47]}  Qa3 {[%clk 0:01:34]} 24. Rb6 {[%clk 0:01:29]}  Rxb6 {[%clk 0:01:29]} 25. cxb6 {[%clk 0:01:30]}  Qd6 {[%clk 0:01:27]} 26. Rb1 {[%clk 0:01:29]}  Bb7 {[%clk 0:01:27]} 27. Qc2 {[%clk 0:01:19]}  Rc8 {[%clk 0:01:23]} 28. Qa4 {[%clk 0:01:18]}  Qc6 {[%clk 0:01:17]} 29. Qxc6 {[%clk 0:00:59]}  Rxc6 {[%clk 0:01:16]} 30. Rb3 {[%clk 0:00:59]}  Kf8 {[%clk 0:01:06]} 31. a4 {[%clk 0:00:59]}  Ke7 {[%clk 0:00:57]} 32. a5 {[%clk 0:00:59]}  Kd6 {[%clk 0:00:57]} 33. f4 {[%clk 0:00:59]}  h6 {[%clk 0:00:56]} 34. Kf2 {[%clk 0:00:58]}  g5 {[%clk 0:00:56]} 35. g3 {[%clk 0:00:59]}  gxf4 {[%clk 0:00:56]} 36. gxf4 {[%clk 0:00:59]}  Rc8 {[%clk 0:00:55]} 37. Ke3 {[%clk 0:00:57]}  Rg8 {[%clk 0:00:54]} 38. Rb1 {[%clk 0:00:57]}  Rg3+ {[%clk 0:00:53]} 39. Bf3 {[%clk 0:00:57]}  Kc6 {[%clk 0:00:45]} 40. c4 {[%clk 0:00:56]}  Kd6 {[%clk 0:00:36]} 41. c5+ {[%clk 0:00:52]}  Kd7 {[%clk 0:00:28]} 42. Kf2 {[%clk 0:00:51]}  Rg8 {[%clk 0:00:26]} 43. Bd1 {[%clk 0:00:50]}  Bc6 {[%clk 0:00:24]} 44. Be2 {[%clk 0:00:50]}  Bb7 {[%clk 0:00:19]} 45. Rh1 {[%clk 0:00:48]}  Rg6 {[%clk 0:00:18]} 46. Bh5 {[%clk 0:00:43]}  Rg7 {[%clk 0:00:18]} 47. Rh3 {[%clk 0:00:37]}  Ke7 {[%clk 0:00:12]} 48. Be2 {[%clk 0:00:34]}  Rg6 {[%clk 0:00:09]} 49. Rc3 {[%clk 0:00:34]} 1-0


[Site "https://www.chess.com"]

[Event "Titled Tuesday Blitz April 25 Early 2023"]
[White "Souleidis, Georgios"]
[Black "KorolDimitriy75"]
[WhiteFideId "4206827"]
[WhiteElo "2401"]
[BlackElo "2435"]
[Result "1-0"]
[Round "05"]
[TimeControl "180+2"]
[Date "2023.04.25"]
[WhiteClock "0:00:32"]
[BlackClock "0:00:03"]

1. e4 {[%clk 0:03:00]}  c5 {[%clk 0:02:59]} 2. Be2 {[%clk 0:02:58]}  g6 {[%clk 0:02:57]} 3. d3 {[%clk 0:02:58]}  Bg7 {[%clk 0:02:57]} 4. f4 {[%clk 0:02:59]}  Nc6 {[%clk 0:02:57]} 5. Nf3 {[%clk 0:03:00]}  d6 {[%clk 0:02:56]} 6. O-O {[%clk 0:03:00]}  e5 {[%clk 0:02:55]} 7. c3 {[%clk 0:02:58]}  Nge7 {[%clk 0:02:54]} 8. fxe5 {[%clk 0:02:57]}  dxe5 {[%clk 0:02:53]} 9. Qe1 {[%clk 0:02:53]}  O-O {[%clk 0:02:43]} 10. Qh4 {[%clk 0:02:52]}  f6 {[%clk 0:02:32]} 11. Be3 {[%clk 0:02:48]}  b6 {[%clk 0:02:31]} 12. Nbd2 {[%clk 0:02:33]}  Be6 {[%clk 0:02:31]} 13. a3 {[%clk 0:02:24]}  a5 {[%clk 0:02:07]} 14. a4 {[%clk 0:02:24]}  Qc7 {[%clk 0:02:00]} 15. Nc4 {[%clk 0:02:23]}  Rad8 {[%clk 0:01:58]} 16. Na3 {[%clk 0:02:22]}  Qd7 {[%clk 0:01:25]} 17. Nb5 {[%clk 0:02:21]}  Kh8 {[%clk 0:01:14]} 18. d4 {[%clk 0:02:06]}  cxd4 {[%clk 0:01:07]} 19. cxd4 {[%clk 0:02:07]}  exd4 {[%clk 0:01:07]} 20. Nfxd4 {[%clk 0:02:02]}  Nxd4 {[%clk 0:01:06]} 21. Bxd4 {[%clk 0:01:55]}  g5 {[%clk 0:00:47]} 22. Qf2 {[%clk 0:01:36]}  Nc8 {[%clk 0:00:47]} 23. Bc3 {[%clk 0:01:21]}  h6 {[%clk 0:00:38]} 24. Rad1 {[%clk 0:01:19]}  Qe7 {[%clk 0:00:36]} 25. Qe3 {[%clk 0:00:55]}  Bb3 {[%clk 0:00:31]} 26. Rxd8 {[%clk 0:00:43]}  Rxd8 {[%clk 0:00:27]} 27. Ra1 {[%clk 0:00:37]}  Bg8 {[%clk 0:00:19]} 28. h4 {[%clk 0:00:36]}  Qe6 {[%clk 0:00:10]} 29. Nd4 {[%clk 0:00:34]}  Qd7 {[%clk 0:00:05]} 30. Nf5 {[%clk 0:00:32]}  Bh7 {[%clk 0:00:04]} 31. Nxg7 {[%clk 0:00:32]}  Kxg7 {[%clk 0:00:05]} 32. hxg5 {[%clk 0:00:32]}  hxg5 {[%clk 0:00:02]} 33. Qxg5+ {[%clk 0:00:32]}  Bg6 {[%clk 0:00:03]} 34. Qxf6+ {[%clk 0:00:32]}  Kh7 {[%clk 0:00:03]} 35. Qh4+ {[%clk 0:00:31]}  Kg8 {[%clk 0:00:03]} 36. Qh8+ {[%clk 0:00:31]}  Kf7 {[%clk 0:00:03]} 37. Qg7+ {[%clk 0:00:32]} 1-0


[Site "https://www.chess.com"]